bitfinex/quotes_SOLUSD_20250310
["timestamp","ask_amount","ask_price","bid_price","bid_amount"]
[1741629439268,0.28432314,118.35,118.3,56.27391933]
[1741629439473,0.28432314,118.35,118.31,54.27391933]
[1741629439674,0.28432314,118.35,118.31,2.0]
[1741629439877,0.28432314,118.35,118.32,2.0]
[1741629440082,0.14216157,118.36,118.33,2.0]
[1741629440285,0.14216157,118.36,118.33,56.27391933]
[1741629440586,14.8,118.35,118.32,54.27391933]
[1741629440789,14.8,118.35,118.31,56.27391933]
[1741629440991,14.8,118.35,118.33,54.27391933]
[1741629441282,14.8,118.35,118.3,2.0]
[1741629441473,0.14216157,118.34,118.3,56.27391933]
[1741629441982,14.8,118.35,118.32,54.27391933]
[1741629442576,0.14216157,118.36,118.34,2.0]
[1741629442781,14.68,118.35,118.34,2.0]
[1741629442988,14.66,118.35,118.32,56.27391933]
[1741629443185,14.66,118.35,118.34,54.27391933]
[1741629443480,14.66,118.35,118.34,56.27391933]
[1741629444189,0.28432314,118.34,118.29,2.0]
[1741629444369,14.66,118.35,118.33,56.27391933]
[1741629444570,223.94,118.35,118.34,2.0]
[1741629444891,223.94,118.35,118.34,56.27391933]
[1741629445058,54.27391933,118.47,118.39,2.0]
[1741629445259,223.94,118.46,118.44,56.27391933]
[1741629445470,0.03,118.51,118.5,2.0]
[1741629445668,14.68,118.59,118.57,2.0]
[1741629445878,14.68,118.59,118.57,54.27391933]
[1741629446091,14.68,118.59,118.55,56.27391933]
[1741629446386,278.21391933,118.61,118.6,2.0]
[1741629446387,223.94,118.61,118.6,2.0]
[1741629446556,238.6,118.61,118.58,54.27391933]
[1741629446760,223.94,118.61,118.6,56.27391933]
[1741629446960,81.8,118.69,118.6,56.27391933]
[1741629446961,14.68,118.69,118.68,2.0]
[1741629447163,14.68,118.69,118.68,56.27391933]
[1741629447384,14.68,118.69,118.59,124.0]
[1741629447580,14.68,118.69,118.63,1.0246]
[1741629447772,68.95391933,118.69,118.64,1.0246]
[1741629447977,20.0,118.65,118.6,1.0246]
[1741629448292,223.78,118.7,118.65,1.0246]
[1741629448494,223.78,118.7,118.66,55.29851933]
[1741629448786,14.7,118.69,118.66,55.29851933]
[1741629448966,223.78,118.7,118.6,124.0]
[1741629448967,223.95485214,118.7,118.69,1.0246]
[1741629449173,238.65485214,118.7,118.69,55.29851933]
[1741629449563,223.95485214,118.7,118.69,55.29851933]
[1741629449763,238.65485214,118.7,118.69,179.29851933]
[1741629449985,0.15879938,118.72,118.71,21.30892314]
[1741629450192,0.15879938,118.72,118.71,199.58284247]
[1741629450487,0.15879938,118.72,118.71,1.0246]
[1741629450684,62.85591871,118.72,118.66,1.0246]
[1741629450885,54.4160809,118.71,118.65,55.29851933]
[1741629451091,0.14216157,118.7,118.65,1.0246]
[1741629451391,20.0,118.66,118.65,1.0246]
[1741629451586,20.0,118.66,118.61,54.27391933]
[1741629451894,0.14216157,118.63,118.59,1.0246]
[1741629452070,14.78,118.62,118.59,1.0246]
[1741629452267,14.78,118.62,118.6,1.0246]
[1741629452461,14.78,118.62,118.59,55.29851933]
[1741629452791,54.27391933,118.61,118.55,2.7431]
[1741629453085,14.78,118.62,118.5,266.33511933]
[1741629453086,14.78,118.62,118.59,1.0246]
[1741629453485,23.2105,118.62,118.58,54.27391933]
[1741629453696,0.14216157,118.61,118.57,55.29851933]
[1741629453985,0.14216157,118.61,118.56,54.27391933]
[1741629454162,14.78,118.62,118.59,55.29851933]
[1741629454363,14.78,118.62,118.61,1.0246]
[1741629454565,14.78,118.62,118.61,55.29851933]
[1741629454768,14.66,118.62,118.61,54.27391933]
[1741629454984,238.18,118.62,118.61,55.29851933]
[1741629455263,238.16,118.62,118.59,55.29851933]
[1741629455462,238.16,118.62,118.59,1.0246]
[1741629455685,238.16,118.62,118.61,55.29851933]
[1741629456063,238.16,118.62,118.61,54.27391933]
[1741629456262,238.16,118.62,118.61,55.29851933]
[1741629456489,223.52,118.62,118.61,179.29851933]
[1741629456677,238.12,118.62,118.61,179.29851933]
[1741629456883,8.09616157,118.71,118.67,1.0246]
[1741629457085,238.04,118.7,118.67,55.29851933]
[1741629457263,238.04,118.7,118.68,55.29851933]
[1741629457568,238.04,118.7,118.68,1.0246]
[1741629457768,238.04,118.7,118.67,1.0246]
[1741629457972,238.04,118.7,118.68,1.0246]
[1741629458175,238.04,118.7,118.67,1.0246]
[1741629458391,238.04,118.7,118.66,1.0246]
[1741629458885,238.04,118.7,118.65,1.0246]
[1741629458886,0.14216157,118.69,118.65,1.0246]
[1741629459098,238.04,118.7,118.67,1.0246]
[1741629459266,238.04,118.7,118.68,1.0246]
[1741629459582,0.15879938,118.72,118.71,1.0246]
[1741629459775,8.58189938,118.72,118.68,1.0246]
[1741629459975,0.15879938,118.72,118.7,1.0246]
[1741629460185,8.58199938,118.72,118.69,55.29851933]
[1741629460372,8.58199938,118.72,118.68,55.29851933]
[1741629460579,54.55824247,118.71,118.66,1.0246]
[1741629460884,54.4160809,118.69,118.64,1.0246]
[1741629461078,0.14216157,118.67,118.63,6.1677]
[1741629461382,0.14216157,118.67,118.62,1.0246]
[1741629461592,20.0,118.64,118.61,2.675]
[1741629461779,14.48,118.63,118.62,1.0246]
[1741629461976,14.48,118.63,118.61,1.0246]
[1741629462287,14.48,118.63,118.62,55.29851933]
[1741629462490,14.48,118.63,118.62,1.0246]
[1741629462865,14.48,118.63,118.62,55.29851933]
[1741629463196,22.9095,118.63,118.62,55.29851933]
[1741629463397,14.48,118.63,118.62,55.29851933]
[1741629463706,22.9095,118.63,118.62,1.0246]
[1741629463871,22.9095,118.63,118.61,54.27391933]
[1741629464187,22.9095,118.63,118.59,55.29851933]
[1741629464898,43.9834,118.63,118.6,54.27391933]
[1741629465196,43.9834,118.63,118.61,54.27391933]
[1741629465396,20.28432314,118.59,118.52,0.063]
[1741629465569,0.14216157,118.55,118.52,0.063]
[1741629465769,14.42,118.54,118.52,0.063]
[1741629466170,54.4160809,118.57,118.52,0.063]
[1741629466578,14.38,118.56,118.52,54.33691933]
[1741629466880,14.38,118.56,118.54,54.27391933]
[1741629467201,14.38,118.55,118.53,54.27391933]
[1741629467491,29.5183,118.57,118.53,54.27391933]
[1741629467696,14.36,118.56,118.53,54.27391933]
[1741629467901,29.5183,118.57,118.53,54.27391933]
[1741629468106,14.32,118.56,118.55,54.27391933]
[1741629468272,14.32,118.56,118.54,54.27391933]
[1741629468473,14.32,118.56,118.53,54.27391933]
[1741629468668,14.32,118.56,118.52,178.33691933]
[1741629468897,0.14216157,118.55,118.52,0.063]
[1741629469086,8.4366,118.53,118.52,0.063]
[1741629469273,8.60526094,118.54,118.52,0.063]
[1741629469673,14.26,118.53,118.52,0.063]
[1741629470171,14.26,118.53,118.52,54.33691933]
[1741629470681,14.26,118.53,118.52,0.063]
[1741629471077,22.6966,118.53,118.52,0.063]
[1741629471474,22.6366,118.53,118.52,0.063]
[1741629471670,22.6366,118.53,118.48,6.0838]
[1741629471671,43.7283,118.53,118.48,6.0838]
[1741629471976,43.7283,118.53,118.5,54.27391933]
[1741629472171,8.4366,118.53,118.52,54.27391933]
[1741629472504,22.7366,118.53,118.5,54.27391933]
[1741629472681,43.8283,118.53,118.5,54.27391933]
[1741629473198,43.8283,118.53,118.49,54.27391933]
[1741629474003,43.8283,118.53,118.5,54.27391933]
[1741629474575,43.8283,118.53,118.49,54.27391933]
[1741629474976,43.8283,118.53,118.48,6.0838]
[1741629475173,29.5333,118.51,118.48,6.0838]
[1741629476190,0.14216157,118.5,118.45,54.27391933]
[1741629476498,223.42,118.49,118.47,54.27391933]
[1741629477305,29.5408,118.48,118.45,54.27391933]
[1741629477509,14.06,118.47,118.45,54.27391933]
[1741629478084,14.06,118.47,118.41,126.9903]
[1741629478085,14.06,118.47,118.44,54.27391933]
[1741629478285,14.06,118.47,118.45,54.27391933]
[1741629478895,14.06,118.47,118.44,54.27391933]
[1741629479211,8.4416,118.46,118.44,54.27391933]
[1741629480009,29.5457,118.46,118.41,124.0]
[1741629480200,29.5457,118.46,118.42,54.27391933]
[1741629480515,8.4416,118.46,118.44,54.27391933]
[1741629480688,8.4416,118.46,118.4,130.1734]
[1741629480884,29.5457,118.46,118.4,6.1734]
[1741629481093,83.81961933,118.46,118.4,6.1734]
[1741629481295,29.5507,118.44,118.39,54.27391933]
[1741629481504,8.443,118.44,118.42,54.27391933]
[1741629481987,29.5507,118.44,118.39,54.27391933]
[1741629482190,20.0,118.39,118.34,6.2344]
[1741629482384,74.27391933,118.35,118.34,0.063]
[1741629482584,20.0,118.35,118.34,0.063]
[1741629482797,74.55824247,118.35,118.34,0.0001]
[1741629483200,0.28432314,118.34,118.31,2.602e-05]
[1741629483400,108.54783866,118.32,118.31,2.602e-05]
[1741629483687,108.54783866,118.32,118.21,57.41711933]
[1741629483688,0.14216157,118.28,118.21,57.41711933]
[1741629483890,54.27391933,118.26,118.21,57.41711933]
[1741629484083,68.21391933,118.25,118.18,6.1579]
[1741629484302,54.27391933,118.23,118.18,6.1579]
[1741629484509,74.27391933,118.22,118.18,6.1579]
[1741629484806,74.27391933,118.22,118.17,54.27391933]
[1741629485014,54.27391933,118.24,118.19,54.27391933]
[1741629485217,54.27391933,118.22,118.15,3.0093]
[1741629485518,14.08216157,118.25,118.17,54.27391933]
[1741629485519,54.27391933,118.21,118.17,54.27391933]
[1741629485688,13.96,118.21,118.18,54.27391933]
[1741629486100,13.96,118.2,118.18,54.27391933]
[1741629486315,8.4559,118.26,118.2,0.28432314]
[1741629486611,0.28432314,118.21,118.08,3.0148]
[1741629487184,0.28432314,118.21,118.15,0.063]
[1741629487393,0.28432314,118.16,118.06,6.1906]
[1741629487717,0.14216157,118.1,118.01,2.9487]
[1741629487920,13.94,118.09,118.05,54.27391933]
[1741629488210,54.27391933,118.07,118.01,2.9487]
[1741629488411,223.7,118.06,117.99,6.5515]
[1741629488989,0.17946541,118.0,117.99,6.5515]
[1741629489187,0.17946541,118.0,117.94,3.1382]
[1741629489407,0.17946541,118.0,117.98,54.27391933]
[1741629489609,8.65396541,118.0,117.98,54.27391933]
[1741629489916,8.65396541,118.0,117.89,6.12525211]
[1741629489917,20.0,117.96,117.89,6.12525211]
[1741629490084,13.98,117.95,117.9,54.27391933]
[1741629490285,223.9,117.94,117.9,54.27391933]
[1741629490511,223.9,117.94,117.91,54.27391933]
[1741629490816,223.9,117.94,117.87,52.3831]
[1741629490817,223.9,117.94,117.93,54.27391933]
[1741629491186,0.28432314,117.99,117.87,52.3831]
[1741629491388,223.9,117.94,117.88,0.28432314]
[1741629491589,223.9,117.94,117.9,20.0]
[1741629491788,8.4773,117.97,117.89,2.0]
[1741629492022,0.17946541,118.0,117.93,0.28432314]
[1741629492222,0.17946541,118.0,117.96,2.28432314]
[1741629492402,0.16519828,118.01,117.99,54.27391933]
[1741629492601,0.17954307,118.03,118.01,0.14216157]
[1741629492814,0.17954307,118.03,118.01,108.54783866]
[1741629493116,0.17089813,118.06,118.04,20.0]
[1741629493297,0.17089813,118.06,118.02,0.14216157]
[1741629493621,0.17089813,118.06,118.04,54.27391933]
[1741629495201,0.17089813,118.06,118.05,54.55824247]
[1741629495514,224.27217803,118.08,118.06,0.28432314]
[1741629495724,0.17561641,118.09,118.07,2.28432314]
[1741629495898,13.92,118.1,118.08,54.27391933]
[1741629496093,13.92,118.1,118.02,54.27391933]
[1741629496295,13.92,118.1,118.09,54.27391933]
[1741629497319,13.92,118.1,118.08,54.27391933]
[1741629497518,22.3874,118.1,118.01,6.5807]
[1741629497697,13.92,118.1,118.07,54.27391933]
[1741629497898,13.92,118.1,118.09,54.27391933]
[1741629498304,238.16,118.1,118.09,54.27391933]
[1741629498504,238.16,118.1,118.08,54.27391933]
[1741629499015,238.16,118.1,118.07,54.27391933]
[1741629499323,238.16,118.1,118.09,54.27391933]
[1741629499520,238.16,118.1,118.07,54.27391933]
[1741629499720,246.6275,118.1,118.07,54.27391933]
[1741629500016,246.6275,118.1,118.08,54.27391933]
[1741629500216,238.16,118.1,118.09,54.27391933]
[1741629500604,246.6274,118.1,118.09,54.27391933]
[1741629500803,238.16,118.1,118.09,54.27391933]
[1741629501011,8.4595,118.21,118.09,54.27391933]
[1741629501322,238.18,118.2,118.18,54.27391933]
[1741629501504,8.4607,118.2,118.18,54.27391933]
[1741629501817,238.18,118.19,118.16,54.27391933]
[1741629502016,238.18,118.19,118.08,54.27391933]
[1741629502017,54.27391933,118.32,118.18,54.27391933]
[1741629502201,246.6345,118.28,118.24,54.27391933]
[1741629502529,20.0,118.25,118.15,0.28432314]
[1741629502689,0.14216157,118.27,118.14,54.27391933]
[1741629502894,8.4489,118.36,118.17,2.0]
[1741629503122,8.4489,118.36,118.13,6.49426157]
[1741629503123,54.27391933,118.38,118.26,54.27391933]
[1741629503306,54.27391933,118.35,118.29,54.27391933]
[1741629503503,20.0,118.29,118.26,54.27391933]
[1741629503701,238.2,118.28,118.26,54.27391933]
[1741629503890,13.98,118.27,118.23,20.0]
[1741629504090,224.22,118.28,118.23,20.0]
[1741629504409,238.2,118.28,118.27,54.27391933]
[1741629504711,13.98,118.31,118.27,54.27391933]
[1741629504912,13.98,118.31,118.3,108.54783866]
[1741629505112,13.98,118.31,118.3,54.27391933]
[1741629506805,224.1,118.35,118.3,54.27391933]
[1741629506997,224.1,118.35,118.26,60.58741933]
[1741629506998,224.1,118.35,118.34,54.27391933]
[1741629507313,238.18,118.35,118.34,54.27391933]
[1741629507514,238.18,118.35,118.27,2.0]
[1741629507698,238.18,118.35,118.33,54.27391933]
[1741629507902,238.18,118.35,118.26,60.58741933]
[1741629507903,238.18,118.35,118.34,54.27391933]
[1741629508519,224.1,118.35,118.34,54.27391933]
[1741629509001,14.21432962,118.35,118.34,54.27391933]
[1741629509205,0.15432962,118.35,118.34,54.27391933]
[1741629510302,0.18432962,118.35,118.34,54.27391933]
[1741629510806,0.18432962,118.35,118.34,54.55824247]
[1741629511008,0.15468472,118.36,118.34,54.55824247]
[1741629511009,0.1680447,118.37,118.36,20.28432314]
[1741629511320,0.17479315,118.38,118.36,128.69000023]
[1741629511623,0.1556613,118.39,118.37,128.54783866]
[1741629511824,0.1556613,118.39,118.38,108.54783866]
[1741629512130,0.1556613,118.39,118.38,54.27391933]
[1741629512607,8.6022613,118.39,118.35,20.0]
[1741629512931,8.6022613,118.39,118.34,54.27391933]
[1741629513110,8.6022613,118.39,118.36,54.27391933]
[1741629513426,8.6022613,118.39,118.32,54.27391933]
[1741629513427,8.6022613,118.39,118.35,54.27391933]
[1741629513803,0.1556613,118.39,118.38,54.27391933]
[1741629514129,14.1756613,118.39,118.38,54.27391933]
[1741629514337,22.6222613,118.39,118.37,54.27391933]
[1741629514516,22.6222613,118.39,118.32,54.27391933]
[1741629514517,22.6222613,118.39,118.36,54.27391933]
[1741629514703,22.6222613,118.39,118.37,54.27391933]
[1741629514930,43.7388613,118.39,118.35,54.27391933]
[1741629515135,22.6222613,118.39,118.37,54.27391933]
[1741629515330,14.1756613,118.39,118.38,54.27391933]
[1741629516331,14.2356613,118.39,118.38,54.27391933]
[1741629516532,22.6822613,118.39,118.38,54.27391933]
[1741629516840,8.3522613,118.39,118.37,54.27391933]
[1741629517055,8.62397431,118.4,118.38,54.27391933]
[1741629517554,8.62397431,118.4,118.37,54.27391933]
[1741629517740,29.73877431,118.4,118.36,54.27391933]
[1741629517949,14.1,118.39,118.36,54.27391933]
[1741629518127,14.1,118.39,118.29,20.0]
[1741629518553,14.1,118.39,118.36,54.27391933]
[1741629518852,14.1,118.39,118.37,54.27391933]
[1741629519062,14.1,118.39,118.32,54.27391933]
[1741629519229,14.1,118.39,118.36,54.27391933]
[1741629519438,14.1,118.39,118.37,54.27391933]
[1741629519629,8.62397431,118.4,118.38,54.27391933]
[1741629519855,0.17787431,118.4,118.39,54.27391933]
[1741629521055,8.62377431,118.4,118.38,54.27391933]
[1741629521862,29.73857431,118.4,118.37,54.27391933]
[1741629522350,29.73857431,118.4,118.36,54.33691933]
[1741629522564,0.03,118.39,118.36,0.063]
[1741629522864,0.03,118.39,118.37,54.27391933]
[1741629523464,0.03,118.39,118.36,54.33691933]
[1741629523766,0.03,118.39,118.36,0.063]
[1741629524173,54.58824247,118.39,118.36,0.063]
[1741629524470,0.03,118.39,118.36,0.063]
[1741629524654,0.31432314,118.39,118.36,0.063]
[1741629524860,54.27391933,118.38,118.36,0.063]
[1741629525470,54.55824247,118.37,118.31,54.27391933]
[1741629525669,54.27391933,118.36,118.31,54.27391933]
[1741629525971,43.5732,118.35,118.31,54.27391933]
[1741629526186,97.84711933,118.35,118.3,54.27391933]
[1741629526553,97.84711933,118.35,118.29,54.27391933]
[1741629526753,0.28432314,118.34,118.29,54.27391933]
[1741629526969,140.09461933,118.35,118.3,54.27391933]
[1741629527178,54.27391933,118.32,118.26,54.27391933]
[1741629527371,223.78,118.31,118.28,54.27391933]
[1741629527551,223.78,118.31,118.29,54.27391933]
[1741629527973,232.2325,118.31,118.29,54.27391933]
[1741629528359,13.98,118.3,118.29,54.27391933]
[1741629528875,13.98,118.3,118.27,54.27391933]
[1741629529078,14.14865359,118.3,118.27,54.27391933]
[1741629529878,8.4537,118.29,118.25,54.27391933]
[1741629530084,83.86201933,118.29,118.2,54.27391933]
[1741629530473,83.86201933,118.29,118.24,54.27391933]
[1741629530667,74.4160809,118.26,118.19,6.2793]
[1741629530876,0.14216157,118.25,118.2,54.27391933]
[1741629531078,13.92,118.24,118.2,54.27391933]
[1741629531285,13.92,118.24,118.19,54.27391933]
[1741629531469,0.28432314,118.23,118.19,54.27391933]
[1741629531771,223.86,118.22,118.18,54.27391933]
[1741629531958,8.4595,118.21,118.18,54.27391933]
[1741629532158,29.6083,118.21,118.14,6.4731]
[1741629532380,83.88221933,118.21,118.16,54.27391933]
[1741629532588,29.6083,118.21,118.17,54.27391933]
[1741629532794,83.88221933,118.21,118.16,54.27391933]
[1741629533086,54.55824247,118.2,118.15,54.27391933]
[1741629533271,54.27391933,118.2,118.15,54.27391933]
[1741629533668,71.9059,118.21,118.16,54.27391933]
[1741629533891,126.17981933,118.21,118.16,54.27391933]
[1741629534089,54.27391933,118.2,118.15,54.27391933]
[1741629534384,8.4595,118.21,118.19,54.27391933]
[1741629535087,13.78,118.2,118.15,0.28432314]
[1741629535278,13.76,118.19,118.17,20.0]
[1741629535481,223.86,118.22,118.18,0.28432314]
[1741629535863,223.86,118.22,118.21,20.28432314]
[1741629536275,223.86,118.22,118.21,74.55824247]
[1741629536678,13.74,118.25,118.22,0.28432314]
[1741629536875,13.86,118.27,118.24,54.27391933]
[1741629537195,13.86,118.27,118.26,54.27391933]
[1741629537792,13.88,118.27,118.26,54.27391933]
[1741629538562,0.16865359,118.3,118.26,108.54783866]
[1741629538767,224.10865359,118.3,118.29,54.27391933]
[1741629538986,246.38165359,118.3,118.25,20.0]
[1741629539361,246.38165359,118.3,118.29,54.27391933]
[1741629539560,246.38165359,118.3,118.27,54.27391933]
[1741629539783,246.38165359,118.3,118.26,54.27391933]
[1741629540091,223.92,118.29,118.25,54.27391933]
[1741629540595,29.25435359,118.3,118.25,54.27391933]
[1741629540887,29.25435359,118.3,118.26,54.27391933]
[1741629540888,223.92,118.28,118.26,54.27391933]
[1741629541099,223.92,118.28,118.27,54.27391933]
[1741629541295,237.7,118.28,118.27,54.27391933]
[1741629541874,246.1545,118.28,118.21,4.27937472]
[1741629542066,246.1545,118.28,118.24,54.27391933]
[1741629542266,246.1545,118.28,118.25,54.27391933]
[1741629542467,223.92,118.28,118.27,54.27391933]
[1741629542769,246.2345,118.28,118.25,54.27391933]
[1741629543188,246.2345,118.28,118.24,54.27391933]
[1741629543401,237.78,118.28,118.27,54.27391933]
[1741629543571,223.92,118.28,118.27,54.27391933]
[1741629543774,237.78,118.28,118.27,54.27391933]
[1741629544871,237.86,118.28,118.27,54.27391933]
[1741629545093,246.3145,118.28,118.27,54.27391933]
[1741629545394,0.15827433,118.31,118.27,186.72911933]
[1741629545696,14.04,118.3,118.27,132.4552]
[1741629545903,0.15827433,118.31,118.28,0.28432314]
[1741629546081,0.1739445,118.33,118.31,144.0]
[1741629546274,0.15343596,118.35,118.31,144.0]
[1741629546476,0.15343596,118.35,118.32,0.28432314]
[1741629546691,0.17689262,118.37,118.34,54.27391933]
[1741629546894,0.17689262,118.37,118.35,54.27391933]
[1741629547107,14.2474584,118.36,118.35,54.27391933]
[1741629547965,0.2274584,118.36,118.35,186.72341933]
[1741629548184,0.2274584,118.36,118.35,241.2816618]
[1741629548395,0.17689262,118.37,118.35,241.2816618]
[1741629548726,0.17689262,118.37,118.36,54.27391933]
[1741629549073,0.1546033,118.37,118.36,54.27391933]
[1741629549273,0.16190844,118.4,118.39,20.0]
[1741629549472,0.16284144,118.41,118.39,198.27391933]
[1741629549668,0.16284144,118.41,118.4,54.27391933]
[1741629549868,0.16284144,118.41,118.4,178.27391933]
[1741629550504,8.60804144,118.41,118.4,54.27391933]
[1741629550687,0.16284144,118.41,118.4,54.27391933]
[1741629551070,0.16284144,118.41,118.4,178.27391933]
[1741629551494,0.16284144,118.41,118.4,54.27391933]
[1741629551995,0.16284144,118.41,118.39,54.27391933]
[1741629552181,0.16284144,118.41,118.38,54.27391933]
[1741629552182,223.8,118.4,118.38,54.27391933]
[1741629552589,223.8,118.4,118.37,54.27391933]
[1741629552814,223.8,118.4,118.36,54.27391933]
[1741629553198,0.28432314,118.39,118.3,130.436]
[1741629553515,54.27391933,118.38,118.33,54.27391933]
[1741629553682,20.0,118.37,118.34,54.27391933]
[1741629553880,13.88,118.36,118.3,124.0]
[1741629554110,8.4495,118.35,118.32,54.27391933]
[1741629554319,8.4495,118.35,118.31,54.27391933]
[1741629554689,29.5732,118.35,118.31,54.27391933]
[1741629554892,29.5732,118.35,118.3,54.27391933]
[1741629555287,0.28432314,118.35,118.3,54.27391933]
[1741629555488,0.28432314,118.35,118.31,54.27391933]
[1741629556227,29.85752314,118.35,118.31,54.27391933]
[1741629556713,13.8,118.34,118.31,54.27391933]
[1741629557087,13.8,118.34,118.3,54.27391933]
[1741629557315,13.8,118.34,118.31,54.27391933]
[1741629557822,13.8,118.34,118.3,54.27391933]
[1741629558186,54.27391933,118.32,118.27,54.30391933]
[1741629558382,223.82,118.31,118.27,54.30391933]
[1741629558610,278.09391933,118.31,118.27,0.03]
[1741629559412,223.82,118.31,118.27,0.03]
[1741629559796,223.82,118.31,118.27,54.30391933]
[1741629560004,223.82,118.31,118.27,0.03]
[1741629560198,8.453,118.3,118.28,54.27391933]
[1741629560712,8.453,118.3,118.27,54.30391933]
[1741629560919,8.453,118.3,118.28,54.27391933]
[1741629561295,232.2725,118.31,118.29,54.27391933]
[1741629561987,253.4034,118.31,118.27,0.03]
[1741629562218,253.4034,118.31,118.27,54.30391933]
[1741629562516,307.67731933,118.31,118.27,0.03]
[1741629562721,54.55824247,118.3,118.27,0.03]
[1741629562908,0.28432314,118.3,118.27,0.03]
[1741629563295,54.55824247,118.3,118.27,0.03]
[1741629563496,20.0,118.28,118.27,0.03]
[1741629563802,33.54,118.28,118.27,0.03]
[1741629563998,13.54,118.28,118.27,0.03]
[1741629564202,21.9945,118.28,118.27,0.03]
[1741629564704,41.9945,118.28,118.27,0.03]
[1741629565015,21.9345,118.28,118.27,0.03]
[1741629567000,76.49274247,118.28,118.27,0.0001]
[1741629569129,76.67430029,118.28,118.27,0.0001]
[1741629569725,42.20038096,118.28,118.27,0.0001]
[1741629569930,76.47430029,118.28,118.27,0.0001]
[1741629571110,22.20038096,118.28,118.27,0.0001]
[1741629571531,8.63605782,118.28,118.27,0.0001]
[1741629571824,237.36155782,118.28,118.27,54.27401933]
[1741629572138,246.10038096,118.28,118.27,0.0001]
[1741629572425,300.37430029,118.28,118.27,0.0001]
[1741629572806,246.10038096,118.28,118.27,0.0001]
[1741629573007,8.92038096,118.28,118.27,0.0001]
[1741629573209,246.08038096,118.28,118.27,0.0001]
[1741629573612,232.59605782,118.28,118.27,0.0001]
[1741629573819,246.08038096,118.28,118.27,0.0001]
[1741629574109,300.35430029,118.28,118.27,0.0001]
[1741629574303,300.35430029,118.28,118.2,124.1]
[1741629574304,0.28432314,118.27,118.2,0.1]
[1741629574506,63.01774247,118.21,118.2,0.0001]
[1741629574704,76.21774247,118.21,118.2,0.0001]
[1741629574929,20.28432314,118.17,118.1,54.27391933]
[1741629575241,0.28432314,118.15,118.04,126.867]
[1741629575428,0.28432314,118.15,118.03,60.56551933]
[1741629575429,54.27391933,118.08,118.03,60.56551933]
[1741629575606,237.16,118.07,118.03,6.2916]
[1741629575807,291.43391933,118.07,118.02,54.33691933]
[1741629576028,54.27391933,118.05,118.02,0.063]
[1741629576234,237.16,118.07,118.02,0.063]
[1741629576409,0.28432314,118.06,118.02,0.063]
[1741629576605,54.27391933,118.03,118.02,0.063]
[1741629576805,54.27391933,118.04,118.02,0.063]
[1741629577033,20.0,118.03,118.02,0.063]
[1741629577216,20.28432314,118.03,118.02,0.0001]
[1741629577922,128.8321618,118.03,118.02,0.0001]
[1741629578310,82.08432314,118.02,117.95,45.9669]
[1741629578505,54.27391933,117.98,117.95,45.9669]
[1741629578705,278.33391933,117.97,117.95,45.9669]
[1741629578913,54.55824247,117.96,117.95,45.9669]
[1741629579317,0.28432314,117.96,117.95,45.9669]
[1741629579507,0.28432314,117.92,117.9,0.063]
[1741629579844,13.22,117.91,117.9,0.063]
[1741629580014,13.50432314,117.91,117.9,0.063]
[1741629580327,67.77824247,117.91,117.9,0.063]
[1741629581148,13.50432314,117.91,117.9,0.063]
[1741629581443,13.50432314,117.91,117.9,54.33691933]
[1741629581444,13.22,117.91,117.9,54.33691933]
[1741629581628,13.50432314,117.91,117.9,0.063]
[1741629582208,21.98532314,117.91,117.9,0.063]
[1741629582408,76.25924247,117.91,117.9,0.0001]
[1741629583421,67.77824247,117.91,117.9,0.0001]
[1741629583774,237.58,117.91,117.9,0.0001]
[1741629584124,224.36,117.91,117.9,0.0001]
[1741629584323,237.58,117.91,117.9,0.0001]
[1741629584521,62.74771933,118.01,117.91,2.8101]
[1741629584747,54.27391933,117.97,117.92,54.27391933]
[1741629584950,0.14216157,117.96,117.91,57.08401933]
[1741629585154,237.58,118.0,117.93,54.27391933]
[1741629585451,237.58,118.0,117.91,2.8101]
[1741629585452,0.28432314,117.98,117.94,54.27391933]
[1741629586055,0.28432314,117.99,117.97,54.27391933]